Department family,Entity,Date,Expense type,Expense area,Supplier,Transaction number,Amount,VAT registration number,
Department for Business Energy and Industrial Strategy,Intellectual Property Office,07/02/2018,Accommodation,People Places & Services Direc,Applied Products,517507,816.00,Not Applicable,
Department for Business Energy and Industrial Strategy,Intellectual Property Office,21/02/2018,Accommodation,People Places & Services Direc,Corona Energy,12792262,1249.40,Not Applicable,
Department for Business Energy and Industrial Strategy,Intellectual Property Office,21/02/2018,Accommodation,People Places & Services Direc,Corona Energy,12792273,3217.90,Not Applicable,
Department for Business Energy and Industrial Strategy,Intellectual Property Office,21/02/2018,Accommodation,People Places & Services Direc,Department For Business Innovation & Ski,6.1511E+11,12629.54,Not Applicable,
Department for Business Energy and Industrial Strategy,Intellectual Property Office,19/02/2018,Accommodation,People Places & Services Direc,Dwr Cymru Cyf,8098614538,864.90,Not Applicable,
Department for Business Energy and Industrial Strategy,Intellectual Property Office,13/02/2018,Accommodation,People Places & Services Direc,Pro Investments Limited,113127,11192.08,Not Applicable,
Department for Business Energy and Industrial Strategy,Intellectual Property Office,21/02/2018,Accommodation,People Places & Services Direc,Healthy Workstations Ltd,31868,1159.63,Not Applicable,
Department for Business Energy and Industrial Strategy,Intellectual Property Office,26/02/2018,Accommodation,People Places & Services Direc,Healthy Workstations Ltd,31964,718.74,Not Applicable,
Department for Business Energy and Industrial Strategy,Intellectual Property Office,13/02/2018,Accommodation,People Places & Services Direc,Senator International Ltd,S01432413,680.18,Not Applicable,
Department for Business Energy and Industrial Strategy,Intellectual Property Office,13/02/2018,Accommodation,People Places & Services Direc,Senator International Ltd,S01432414,688.86,Not Applicable,
Department for Business Energy and Industrial Strategy,Intellectual Property Office,22/02/2018,Accommodation,People Places & Services Direc,Senator International Ltd,S01435198,686.12,Not Applicable,
Department for Business Energy and Industrial Strategy,Intellectual Property Office,21/02/2018,Accommodation,People Places & Services Direc,Thomas Waste Management Ltd,190970,672.00,Not Applicable,
Department for Business Energy and Industrial Strategy,Intellectual Property Office,27/02/2018,Accommodation,People Places & Services Direc,Thomas Waste Management Ltd,191126,1230.48,Not Applicable,
Department for Business Energy and Industrial Strategy,Intellectual Property Office,15/02/2018,Accommodation,People Places & Services Direc,Total Security Protection Ltd,31542,1159.00,Not Applicable,
Department for Business Energy and Industrial Strategy,Intellectual Property Office,07/02/2018,Accommodation,People Places & Services Direc,EDF ENERGY,3833258,1480.30,Not Applicable,
Department for Business Energy and Industrial Strategy,Intellectual Property Office,12/02/2018,Accommodation,People Places & Services Direc,EDF ENERGY,3847994,35138.26,Not Applicable,
Department for Business Energy and Industrial Strategy,Intellectual Property Office,16/02/2018,Accommodation,People Places & Services Direc,SIG TRADING LTD,7033/60044343,937.38,Not Applicable,
Department for Business Energy and Industrial Strategy,Intellectual Property Office,16/02/2018,Accommodation,People Places & Services Direc,SIG TRADING LTD,7033/60044499,1111.89,Not Applicable,
Department for Business Energy and Industrial Strategy,Intellectual Property Office,09/02/2018,Accommodation,People Places & Services Direc,D&M Mechanical Engineers Ltd,3221,36000.00,Not Applicable,
Department for Business Energy and Industrial Strategy,Intellectual Property Office,21/02/2018,Accommodation,People Places & Services Direc,ENGIE Services Limited,1800033172,1680.00,Not Applicable,
Department for Business Energy and Industrial Strategy,Intellectual Property Office,14/02/2018,Accommodation,People Places & Services Direc,Newport Wafer Fab Limited,NWL0029,11500.00,Not Applicable,
Department for Business Energy and Industrial Strategy,Intellectual Property Office,21/02/2018,Accommodation,People Places & Services Direc,Brookfield Properties (UK PM) Limited,2017-206,382060.80,Not Applicable,
Department for Business Energy and Industrial Strategy,Intellectual Property Office,12/02/2018,Accommodation,People Places & Services Direc,JJ Martin (Catering Appliance Superstore,5714,864.00,Not Applicable,
Department for Business Energy and Industrial Strategy,Intellectual Property Office,12/02/2018,Information Technology,IT Directorate,British Standards Institution,94932834,1908.00,Not Applicable,
Department for Business Energy and Industrial Strategy,Intellectual Property Office,05/02/2018,Information Technology,IT Directorate,Capita Business Services  Ltd,LO10244585,21329.74,Not Applicable,
Department for Business Energy and Industrial Strategy,Intellectual Property Office,16/02/2018,Information Technology,IT Directorate,Capita Business Services  Ltd,LO10247423,47011.08,Not Applicable,
Department for Business Energy and Industrial Strategy,Intellectual Property Office,22/02/2018,Information Technology,IT Directorate,Capita Business Services  Ltd,LO10248595,32665.84,Not Applicable,
Department for Business Energy and Industrial Strategy,Intellectual Property Office,27/02/2018,Information Technology,IT Directorate,Insight Direct (UK) Ltd,3773216,6757.20,Not Applicable,
Department for Business Energy and Industrial Strategy,Intellectual Property Office,09/02/2018,Information Technology,Patent Directorate,IOP Publishing Ltd,04284-00-2018,5431.75,Not Applicable,
Department for Business Energy and Industrial Strategy,Intellectual Property Office,05/02/2018,Information Technology,IT Directorate,LA International Computer Consultants Lt,LA475716,3068.21,Not Applicable,
Department for Business Energy and Industrial Strategy,Intellectual Property Office,09/02/2018,Information Technology,IT Directorate,LA International Computer Consultants Lt,LA477023,4634.27,Not Applicable,
Department for Business Energy and Industrial Strategy,Intellectual Property Office,09/02/2018,Information Technology,IT Directorate,LA International Computer Consultants Lt,LA477024,3146.88,Not Applicable,
Department for Business Energy and Industrial Strategy,Intellectual Property Office,16/02/2018,Information Technology,IT Directorate,LA International Computer Consultants Lt,LA478234,2342.68,Not Applicable,
Department for Business Energy and Industrial Strategy,Intellectual Property Office,16/02/2018,Information Technology,IT Directorate,LA International Computer Consultants Lt,LA478235,3146.88,Not Applicable,
Department for Business Energy and Industrial Strategy,Intellectual Property Office,22/02/2018,Information Technology,IT Directorate,LA International Computer Consultants Lt,LA479375,1915.62,Not Applicable,
Department for Business Energy and Industrial Strategy,Intellectual Property Office,26/02/2018,Information Technology,IT Directorate,LA International Computer Consultants Lt,LA479376,3087.88,Not Applicable,
Department for Business Energy and Industrial Strategy,Intellectual Property Office,21/02/2018,Information Technology,IT Directorate,Softcat Ltd,INV01834072,12269.88,Not Applicable,
Department for Business Energy and Industrial Strategy,Intellectual Property Office,22/02/2018,Information Technology,IT Directorate,Specialist Computer Centres Plc,OP-M403201,2984.50,Not Applicable,
Department for Business Energy and Industrial Strategy,Intellectual Property Office,12/02/2018,Information Technology,IT Directorate,Specialist Computer Centres Plc,OP/M402353,986.42,Not Applicable,
Department for Business Energy and Industrial Strategy,Intellectual Property Office,23/02/2018,Information Technology,IT Directorate,Specialist Computer Centres Plc,OP/M404349,41298.98,Not Applicable,
Department for Business Energy and Industrial Strategy,Intellectual Property Office,20/02/2018,Information Technology,IT Directorate,Specialist Computer Centres Plc,OP/M405617,504.12,Not Applicable,
Department for Business Energy and Industrial Strategy,Intellectual Property Office,14/02/2018,Information Technology,IT Directorate,Trustmarque Solutions Ltd,2268748,1483.46,Not Applicable,
Department for Business Energy and Industrial Strategy,Intellectual Property Office,06/02/2018,Information Technology,IT Directorate,HORNBILL SERVICE MANAGEMENT LIMITED,INV13699,14815.80,Not Applicable,
Department for Business Energy and Industrial Strategy,Intellectual Property Office,05/02/2018,Information Technology,Projects,Experian Ltd,HEX67000630592,16524.00,Not Applicable,
Department for Business Energy and Industrial Strategy,Intellectual Property Office,08/02/2018,Information Technology,IT Directorate,Bytes Software Services Ltd,503653,877.22,Not Applicable,
Department for Business Energy and Industrial Strategy,Intellectual Property Office,23/02/2018,Information Technology,IT Directorate,Bytes Software Services Ltd,505168,877.22,Not Applicable,
Department for Business Energy and Industrial Strategy,Intellectual Property Office,09/02/2018,Information Technology,IT Directorate,Verisign,520005901,4265.50,Not Applicable,
Department for Business Energy and Industrial Strategy,Intellectual Property Office,06/02/2018,Information Technology,IT Directorate,Micro Focus Ltd,97078065,302475.42,Not Applicable,
Department for Business Energy and Industrial Strategy,Intellectual Property Office,23/02/2018,Information Technology,IT Directorate,Responsiv Solutions Limited,RSL0449,359608.00,Not Applicable,
Department for Business Energy and Industrial Strategy,Intellectual Property Office,26/02/2018,Information Technology,IT Directorate,Responsiv Solutions Limited,RSL0454,3311.70,Not Applicable,
Department for Business Energy and Industrial Strategy,Intellectual Property Office,09/02/2018,Information Technology,IT Directorate,Equal Experts UK Limited,INV-4036,15000.00,Not Applicable,
Department for Business Energy and Industrial Strategy,Intellectual Property Office,12/02/2018,Information Technology,Projects,Pirean Ltd,2988,53562.00,Not Applicable,
Department for Business Energy and Industrial Strategy,Intellectual Property Office,12/02/2018,Information Technology,Projects,Pirean Ltd,2989,52902.00,Not Applicable,
Department for Business Energy and Industrial Strategy,Intellectual Property Office,12/02/2018,Information Technology,Projects,Pirean Ltd,7128,-53562.00,Not Applicable,
Department for Business Energy and Industrial Strategy,Intellectual Property Office,06/02/2018,Information Technology,Projects,Agile Solutions GB Ltd,INV-3631,9750.00,Not Applicable,
Department for Business Energy and Industrial Strategy,Intellectual Property Office,07/02/2018,Information Technology,Projects,Silver Marlin Associates Ltd,IPO2009,15390.00,Not Applicable,
Department for Business Energy and Industrial Strategy,Intellectual Property Office,13/02/2018,Information Technology,IT Directorate,Howell Technology Group,HTG000285,90906.00,Not Applicable,
Department for Business Energy and Industrial Strategy,Intellectual Property Office,21/02/2018,Information Technology,Copyright & Enforcement Direct,Altia Solutions Limited,INV2018-039,9690.00,Not Applicable,
Department for Business Energy and Industrial Strategy,Intellectual Property Office,13/02/2018,Information Technology,IT Directorate,Total Computer Networks Ltd,SI651082,3121.19,Not Applicable,
Department for Business Energy and Industrial Strategy,Intellectual Property Office,21/02/2018,Information Technology,IT Directorate,Galtec Solutions,117136/121304,9408.00,Not Applicable,
Department for Business Energy and Industrial Strategy,Intellectual Property Office,13/02/2018,Legal & Hearings,Trade Mark Directorate,Marten Walsh Cherer Ltd,98020,1219.50,Not Applicable,
Department for Business Energy and Industrial Strategy,Intellectual Property Office,13/02/2018,Legal & Hearings,Trade Mark Directorate,Government Legal Department,449766,22.32,Not Applicable,
Department for Business Energy and Industrial Strategy,Intellectual Property Office,13/02/2018,Legal & Hearings,Patent Directorate,Government Legal Department,449766,1249.92,Not Applicable,
Department for Business Energy and Industrial Strategy,Intellectual Property Office,19/02/2018,Legal & Hearings,Trade Mark Directorate,Government Legal Department,449844,14496.20,Not Applicable,
Department for Business Energy and Industrial Strategy,Intellectual Property Office,21/02/2018,Marketing & Publicity,Innovation Directorate,Holiday Inn Express,2018002880,2186.43,Not Applicable,
Department for Business Energy and Industrial Strategy,Intellectual Property Office,07/02/2018,Marketing & Publicity,Innovation Directorate,Big Bang Education CIC,669,6000.00,Not Applicable,
Department for Business Energy and Industrial Strategy,Intellectual Property Office,06/02/2018,Marketing & Publicity,Innovation Directorate,Mums Enterprise Ltd,INV-0182,630.00,Not Applicable,
Department for Business Energy and Industrial Strategy,Intellectual Property Office,06/02/2018,Marketing & Publicity,Innovation Directorate,Edwardian Free Trade Hall Ltd,0424IPO PRO,750.00,Not Applicable,
Department for Business Energy and Industrial Strategy,Intellectual Property Office,06/02/2018,Miscellaneous Expenses General,Copyright & Enforcement Direct,Bournemouth University,ESI103123,6702.72,Not Applicable,
Department for Business Energy and Industrial Strategy,Intellectual Property Office,06/02/2018,Miscellaneous Expenses General,People Places & Services Direc,Capital Law LLP,20042326,6628.20,Not Applicable,
Department for Business Energy and Industrial Strategy,Intellectual Property Office,27/02/2018,Miscellaneous Expenses General,People Places & Services Direc,Zenith,70967,1033.20,Not Applicable,
Department for Business Energy and Industrial Strategy,Intellectual Property Office,06/02/2018,Miscellaneous Expenses General,IT Directorate,SANDHILL CONSULTANTS LTD,IN4059238,13440.00,Not Applicable,
Department for Business Energy and Industrial Strategy,Intellectual Property Office,08/02/2018,Miscellaneous Expenses General,People Places & Services Direc,Celtech Consultancy Ltd,FRA-0001-18-01,600.00,Not Applicable,
Department for Business Energy and Industrial Strategy,Intellectual Property Office,12/02/2018,Miscellaneous Expenses General,People Places & Services Direc,Business in the Community,SIN054213,3360.00,Not Applicable,
Department for Business Energy and Industrial Strategy,Intellectual Property Office,08/02/2018,Miscellaneous Expenses General,Projects,Robin Jacob,UPC JAN-18,2093.46,Not Applicable,
Department for Business Energy and Industrial Strategy,Intellectual Property Office,07/02/2018,Miscellaneous Expenses General,IT Directorate,Evolve Secure Solutions Ltd,SI001606,4224.00,Not Applicable,
Department for Business Energy and Industrial Strategy,Intellectual Property Office,27/02/2018,Miscellaneous Expenses General,IT Directorate,Responsiv Solutions Limited,RSL0418,12467.45,Not Applicable,
Department for Business Energy and Industrial Strategy,Intellectual Property Office,26/02/2018,Miscellaneous Expenses General,IT Directorate,Responsiv Solutions Limited,RSL0425,12000.00,Not Applicable,
Department for Business Energy and Industrial Strategy,Intellectual Property Office,05/02/2018,Miscellaneous Expenses General,IT Directorate,Responsiv Solutions Limited,RSL0444,37170.64,Not Applicable,
Department for Business Energy and Industrial Strategy,Intellectual Property Office,05/02/2018,Miscellaneous Expenses General,IT Directorate,Responsiv Solutions Limited,RSL0445,8441.20,Not Applicable,
Department for Business Energy and Industrial Strategy,Intellectual Property Office,26/02/2018,Miscellaneous Expenses General,IT Directorate,Responsiv Solutions Limited,RSL0446,15810.68,Not Applicable,
Department for Business Energy and Industrial Strategy,Intellectual Property Office,26/02/2018,Miscellaneous Expenses General,IT Directorate,Responsiv Solutions Limited,RSL0447,91853.30,Not Applicable,
Department for Business Energy and Industrial Strategy,Intellectual Property Office,20/02/2018,Miscellaneous Expenses General,Trade Mark Directorate,Vinci Construction UK Ltd,18011030,120.42,Not Applicable,
Department for Business Energy and Industrial Strategy,Intellectual Property Office,20/02/2018,Miscellaneous Expenses General,Innovation Directorate,Vinci Construction UK Ltd,18011030,157.68,Not Applicable,
Department for Business Energy and Industrial Strategy,Intellectual Property Office,20/02/2018,Miscellaneous Expenses General,People Places & Services Direc,Vinci Construction UK Ltd,18011030,36.96,Not Applicable,
Department for Business Energy and Industrial Strategy,Intellectual Property Office,20/02/2018,Miscellaneous Expenses General,Patent Directorate,Vinci Construction UK Ltd,18011030,29.16,Not Applicable,
Department for Business Energy and Industrial Strategy,Intellectual Property Office,20/02/2018,Miscellaneous Expenses General,Trade Mark Directorate,Vinci Construction UK Ltd,18011030,5.10,Not Applicable,
Department for Business Energy and Industrial Strategy,Intellectual Property Office,20/02/2018,Miscellaneous Expenses General,People Places & Services Direc,Vinci Construction UK Ltd,18011030,530.64,Not Applicable,
Department for Business Energy and Industrial Strategy,Intellectual Property Office,20/02/2018,Miscellaneous Expenses General,People Places & Services Direc,Vinci Construction UK Ltd,18011030,437.24,Not Applicable,
Department for Business Energy and Industrial Strategy,Intellectual Property Office,20/02/2018,Miscellaneous Expenses General,People Places & Services Direc,Vinci Construction UK Ltd,18011030,1102.33,Not Applicable,
Department for Business Energy and Industrial Strategy,Intellectual Property Office,20/02/2018,Miscellaneous Expenses General,Innovation Directorate,Vinci Construction UK Ltd,18011030,110.78,Not Applicable,
Department for Business Energy and Industrial Strategy,Intellectual Property Office,23/02/2018,Miscellaneous Expenses General,Projects,"Positive Cashflow Finance Ltd ""SQA Ltd""",HSR-BB-AC-2212EX,1376.32,Not Applicable,
Department for Business Energy and Industrial Strategy,Intellectual Property Office,23/02/2018,Miscellaneous Expenses General,Projects,"Positive Cashflow Finance Ltd ""SQA Ltd""",HSR-BB-AC-2221,1800.00,Not Applicable,
Department for Business Energy and Industrial Strategy,Intellectual Property Office,23/02/2018,Miscellaneous Expenses General,Projects,"Positive Cashflow Finance Ltd ""SQA Ltd""",HSR-BB-AC-2222,17010.00,Not Applicable,
Department for Business Energy and Industrial Strategy,Intellectual Property Office,23/02/2018,Miscellaneous Expenses General,Projects,"Positive Cashflow Finance Ltd ""SQA Ltd""",HSR-BB-AC-2223,11400.00,Not Applicable,
Department for Business Energy and Industrial Strategy,Intellectual Property Office,23/02/2018,Miscellaneous Expenses General,Projects,"Positive Cashflow Finance Ltd ""SQA Ltd""",HSR-SS-AC-2229EX,1440.00,Not Applicable,
Department for Business Energy and Industrial Strategy,Intellectual Property Office,27/02/2018,Miscellaneous Expenses General,IT Directorate,Acuma Solutions Limited,SIN017727,9540.00,Not Applicable,
Department for Business Energy and Industrial Strategy,Intellectual Property Office,21/02/2018,Miscellaneous Expenses General,Innovation Directorate,Communicate Research Ltd,I-15054,1527.00,Not Applicable,
Department for Business Energy and Industrial Strategy,Intellectual Property Office,07/02/2018,Miscellaneous Expenses General,IT Directorate,(ISC)2,CIIPO11818,3384.00,Not Applicable,
Department for Business Energy and Industrial Strategy,Intellectual Property Office,16/02/2018,Office Machinery,People Places & Services Direc,Total Print Finishing Services Ltd,39934,504.00,Not Applicable,
Department for Business Energy and Industrial Strategy,Intellectual Property Office,22/02/2018,Office Machinery,People Places & Services Direc,Xerox Finance,97205545,34243.73,Not Applicable,
Department for Business Energy and Industrial Strategy,Intellectual Property Office,23/02/2018,Office Machinery,People Places & Services Direc,Xerox Finance,97205546,2983.45,Not Applicable,
Department for Business Energy and Industrial Strategy,Intellectual Property Office,23/02/2018,Office Machinery,People Places & Services Direc,Xerox Finance,97205547,2557.08,Not Applicable,
Department for Business Energy and Industrial Strategy,Intellectual Property Office,13/02/2018,Office Machinery,People Places & Services Direc,Midshire Business Systems (Northern) Ltd,353719,1633.46,Not Applicable,
Department for Business Energy and Industrial Strategy,Intellectual Property Office,26/02/2018,Office Machinery,People Places & Services Direc,Siemens Financial Services Limited,244-18-0114736,2088.00,Not Applicable,
Department for Business Energy and Industrial Strategy,Intellectual Property Office,05/02/2018,Office Supplies,Finance Directorate,Banner Group Limited,1481233,1922.93,Not Applicable,
Department for Business Energy and Industrial Strategy,Intellectual Property Office,06/02/2018,Office Supplies,Patent Directorate,British Library,139796478,607.32,Not Applicable,
Department for Business Energy and Industrial Strategy,Intellectual Property Office,02/02/2018,Office Supplies,People Places & Services Direc,HFX Ltd,26708,4552.20,Not Applicable,
Department for Business Energy and Industrial Strategy,Intellectual Property Office,07/02/2018,Office Supplies,People Places & Services Direc,Antalis,7479873,1059.08,Not Applicable,
Department for Business Energy and Industrial Strategy,Intellectual Property Office,13/02/2018,Office Supplies,People Places & Services Direc,Antalis,7501280,768.76,Not Applicable,
Department for Business Energy and Industrial Strategy,Intellectual Property Office,21/02/2018,Office Supplies,People Places & Services Direc,Antalis,7518972,888.52,Not Applicable,
Department for Business Energy and Industrial Strategy,Intellectual Property Office,12/02/2018,Pay Costs,People Places & Services Direc,Acorn Recruitment Ltd,856225,665.89,Not Applicable,
Department for Business Energy and Industrial Strategy,Intellectual Property Office,12/02/2018,Pay Costs,People Places & Services Direc,Acorn Recruitment Ltd,857634,673.13,Not Applicable,
Department for Business Energy and Industrial Strategy,Intellectual Property Office,06/02/2018,Pay Costs,Patent Directorate,Acorn Recruitment Ltd,865384,779.70,Not Applicable,
Department for Business Energy and Industrial Strategy,Intellectual Property Office,06/02/2018,Pay Costs,People Places & Services Direc,Acorn Recruitment Ltd,865387,672.36,Not Applicable,
Department for Business Energy and Industrial Strategy,Intellectual Property Office,06/02/2018,Pay Costs,Patent Directorate,Acorn Recruitment Ltd,865388,688.43,Not Applicable,
Department for Business Energy and Industrial Strategy,Intellectual Property Office,13/02/2018,Pay Costs,Patent Directorate,Acorn Recruitment Ltd,866084,742.52,Not Applicable,
Department for Business Energy and Industrial Strategy,Intellectual Property Office,13/02/2018,Pay Costs,People Places & Services Direc,Acorn Recruitment Ltd,866085,657.54,Not Applicable,
Department for Business Energy and Industrial Strategy,Intellectual Property Office,13/02/2018,Pay Costs,Patent Directorate,Acorn Recruitment Ltd,866086,688.43,Not Applicable,
Department for Business Energy and Industrial Strategy,Intellectual Property Office,13/02/2018,Pay Costs,Patent Directorate,Acorn Recruitment Ltd,866087,648.46,Not Applicable,
Department for Business Energy and Industrial Strategy,Intellectual Property Office,13/02/2018,Pay Costs,Patent Directorate,Acorn Recruitment Ltd,866088,613.36,Not Applicable,
Department for Business Energy and Industrial Strategy,Intellectual Property Office,06/02/2018,Pay Costs,Patent Directorate,Brook Street (UK) Ltd,30857139,534.58,Not Applicable,
Department for Business Energy and Industrial Strategy,Intellectual Property Office,06/02/2018,Pay Costs,People Places & Services Direc,Brook Street (UK) Ltd,30857139,539.02,Not Applicable,
Department for Business Energy and Industrial Strategy,Intellectual Property Office,06/02/2018,Pay Costs,Patent Directorate,Brook Street (UK) Ltd,30857139,3187.69,Not Applicable,
Department for Business Energy and Industrial Strategy,Intellectual Property Office,06/02/2018,Pay Costs,People Places & Services Direc,Brook Street (UK) Ltd,30857139,643.69,Not Applicable,
Department for Business Energy and Industrial Strategy,Intellectual Property Office,06/02/2018,Pay Costs,Patent Directorate,Brook Street (UK) Ltd,30857139,6728.29,Not Applicable,
Department for Business Energy and Industrial Strategy,Intellectual Property Office,06/02/2018,Pay Costs,Trade Mark Directorate,Brook Street (UK) Ltd,30857139,122.22,Not Applicable,
Department for Business Energy and Industrial Strategy,Intellectual Property Office,06/02/2018,Pay Costs,Patent Directorate,Brook Street (UK) Ltd,30857139,4223.68,Not Applicable,
Department for Business Energy and Industrial Strategy,Intellectual Property Office,12/02/2018,Pay Costs,Patent Directorate,Brook Street (UK) Ltd,30868798,3172.26,Not Applicable,
Department for Business Energy and Industrial Strategy,Intellectual Property Office,12/02/2018,Pay Costs,People Places & Services Direc,Brook Street (UK) Ltd,30868798,658.26,Not Applicable,
Department for Business Energy and Industrial Strategy,Intellectual Property Office,12/02/2018,Pay Costs,Patent Directorate,Brook Street (UK) Ltd,30868798,2274.18,Not Applicable,
Department for Business Energy and Industrial Strategy,Intellectual Property Office,12/02/2018,Pay Costs,People Places & Services Direc,Brook Street (UK) Ltd,30868798,512.10,Not Applicable,
Department for Business Energy and Industrial Strategy,Intellectual Property Office,12/02/2018,Pay Costs,Patent Directorate,Brook Street (UK) Ltd,30868798,3699.25,Not Applicable,
Department for Business Energy and Industrial Strategy,Intellectual Property Office,12/02/2018,Pay Costs,Trade Mark Directorate,Brook Street (UK) Ltd,30868798,612.72,Not Applicable,
Department for Business Energy and Industrial Strategy,Intellectual Property Office,12/02/2018,Pay Costs,Patent Directorate,Brook Street (UK) Ltd,30868798,4152.50,Not Applicable,
Department for Business Energy and Industrial Strategy,Intellectual Property Office,21/02/2018,Pay Costs,Patent Directorate,Brook Street (UK) Ltd,30880126,3808.30,Not Applicable,
Department for Business Energy and Industrial Strategy,Intellectual Property Office,21/02/2018,Pay Costs,Trade Mark Directorate,Brook Street (UK) Ltd,30880126,612.72,Not Applicable,
Department for Business Energy and Industrial Strategy,Intellectual Property Office,21/02/2018,Pay Costs,Patent Directorate,Brook Street (UK) Ltd,30880126,6697.11,Not Applicable,
Department for Business Energy and Industrial Strategy,Intellectual Property Office,21/02/2018,Pay Costs,People Places & Services Direc,Brook Street (UK) Ltd,30880126,662.40,Not Applicable,
Department for Business Energy and Industrial Strategy,Intellectual Property Office,21/02/2018,Pay Costs,Patent Directorate,Brook Street (UK) Ltd,30880126,2505.37,Not Applicable,
Department for Business Energy and Industrial Strategy,Intellectual Property Office,21/02/2018,Pay Costs,Patent Directorate,Brook Street (UK) Ltd,30890449,-672.18,Not Applicable,
Department for Business Energy and Industrial Strategy,Intellectual Property Office,27/02/2018,Pay Costs,Patent Directorate,Brook Street (UK) Ltd,30891927,1508.08,Not Applicable,
Department for Business Energy and Industrial Strategy,Intellectual Property Office,27/02/2018,Pay Costs,IT Directorate,Brook Street (UK) Ltd,30891927,621.00,Not Applicable,
Department for Business Energy and Industrial Strategy,Intellectual Property Office,27/02/2018,Pay Costs,Patent Directorate,Brook Street (UK) Ltd,30891927,2401.10,Not Applicable,
Department for Business Energy and Industrial Strategy,Intellectual Property Office,27/02/2018,Pay Costs,People Places & Services Direc,Brook Street (UK) Ltd,30891927,405.72,Not Applicable,
Department for Business Energy and Industrial Strategy,Intellectual Property Office,27/02/2018,Pay Costs,Patent Directorate,Brook Street (UK) Ltd,30891927,6227.40,Not Applicable,
Department for Business Energy and Industrial Strategy,Intellectual Property Office,27/02/2018,Pay Costs,Trade Mark Directorate,Brook Street (UK) Ltd,30891927,612.72,Not Applicable,
Department for Business Energy and Industrial Strategy,Intellectual Property Office,27/02/2018,Pay Costs,Patent Directorate,Brook Street (UK) Ltd,30891927,2536.56,Not Applicable,
Department for Business Energy and Industrial Strategy,Intellectual Property Office,22/02/2018,Pay Costs,People Places & Services Direc,C2W Support,33938,506.96,Not Applicable,
Department for Business Energy and Industrial Strategy,Intellectual Property Office,19/02/2018,Pay Costs,People Places & Services Direc,Sodexo Motivation Solutions UK Ltd,3403498,11926.14,Not Applicable,
Department for Business Energy and Industrial Strategy,Intellectual Property Office,20/02/2018,Pay Costs,People Places & Services Direc,Sodexo Motivation Solutions UK Ltd,3404145,8083.73,Not Applicable,
Department for Business Energy and Industrial Strategy,Intellectual Property Office,07/02/2018,Postage & Delivery Costs,People Places & Services Direc,DHL International (UK) Ltd,BRS1192632,831.17,Not Applicable,
Department for Business Energy and Industrial Strategy,Intellectual Property Office,14/02/2018,Postage & Delivery Costs,People Places & Services Direc,DHL International (UK) Ltd,BRS1207405,881.19,Not Applicable,
Department for Business Energy and Industrial Strategy,Intellectual Property Office,21/02/2018,Postage & Delivery Costs,People Places & Services Direc,DHL International (UK) Ltd,BRS1225585,2506.99,Not Applicable,
Department for Business Energy and Industrial Strategy,Intellectual Property Office,19/02/2018,Postage & Delivery Costs,People Places & Services Direc,Neopost Finance Ltd,NE9000335-16FEB,10000.00,Not Applicable,
Department for Business Energy and Industrial Strategy,Intellectual Property Office,09/02/2018,Postage & Delivery Costs,IT Directorate,Parcelforce Worldwide,9056011606,2004.24,Not Applicable,
Department for Business Energy and Industrial Strategy,Intellectual Property Office,13/02/2018,Postage & Delivery Costs,People Places & Services Direc,Royal Mail,9056024062,1960.16,Not Applicable,
Department for Business Energy and Industrial Strategy,Intellectual Property Office,27/02/2018,Postage & Delivery Costs,People Places & Services Direc,Royal Mail,9056063105,1182.47,Not Applicable,
Department for Business Energy and Industrial Strategy,Intellectual Property Office,09/02/2018,Postage & Delivery Costs,People Places & Services Direc,CitySprint (UK) Ltd,2449124,7405.31,Not Applicable,
Department for Business Energy and Industrial Strategy,Intellectual Property Office,08/02/2018,Staff Costs,People Places & Services Direc,British Computer Society,1390076,875.70,Not Applicable,
Department for Business Energy and Industrial Strategy,Intellectual Property Office,12/02/2018,Staff Costs,People Places & Services Direc,Cabinet Office,3713285,10425.96,Not Applicable,
Department for Business Energy and Industrial Strategy,Intellectual Property Office,07/02/2018,Staff Costs,Patent Directorate,Dod's Parliamentary Communications,PK0118994,637.20,Not Applicable,
Department for Business Energy and Industrial Strategy,Intellectual Property Office,08/02/2018,Staff Costs,IT Directorate,Dod's Parliamentary Communications,PK0121634,1062.00,Not Applicable,
Department for Business Energy and Industrial Strategy,Intellectual Property Office,22/02/2018,Staff Costs,IT Directorate,Knowledge Academy,250654,2038.80,Not Applicable,
Department for Business Energy and Industrial Strategy,Intellectual Property Office,05/02/2018,Staff Costs,IT Directorate,QA Limited,ISL145691,36000.00,Not Applicable,
Department for Business Energy and Industrial Strategy,Intellectual Property Office,13/02/2018,Staff Costs,People Places & Services Direc,Stonewall Equality Ltd,54677,1078.80,Not Applicable,
Department for Business Energy and Industrial Strategy,Intellectual Property Office,22/02/2018,Staff Costs,Copyright & Enforcement Direct,Research & Intelligence Support Centre L,T/2293,1548.00,Not Applicable,
Department for Business Energy and Industrial Strategy,Intellectual Property Office,23/02/2018,Staff Costs,IT Directorate,Redrock Consulting Ltd,7530,10062.54,Not Applicable,
Department for Business Energy and Industrial Strategy,Intellectual Property Office,23/02/2018,Staff Costs,People Places & Services Direc,Psysoft Ltd,3999,1620.00,Not Applicable,
Department for Business Energy and Industrial Strategy,Intellectual Property Office,05/02/2018,Staff Costs,IT Directorate,Assist Knowledge Development Ltd,1734,4236.00,Not Applicable,
Department for Business Energy and Industrial Strategy,Intellectual Property Office,20/02/2018,Staff Costs,IT Directorate,Assist Knowledge Development Ltd,1752,7910.88,Not Applicable,
Department for Business Energy and Industrial Strategy,Intellectual Property Office,20/02/2018,Staff Costs,Trade Mark Directorate,Assist Knowledge Development Ltd,1752,420.00,Not Applicable,
Department for Business Energy and Industrial Strategy,Intellectual Property Office,08/02/2018,Staff Costs,Copyright & Enforcement Direct,Industry and Parliament Trust,4477,950.00,Not Applicable,
Department for Business Energy and Industrial Strategy,Intellectual Property Office,14/02/2018,Staff Costs,People Places & Services Direc,Involve Me Training and Development Ltd,203,600.00,Not Applicable,
Department for Business Energy and Industrial Strategy,Intellectual Property Office,14/02/2018,Staff Costs,People Places & Services Direc,Involve Me Training and Development Ltd,204,600.00,Not Applicable,
Department for Business Energy and Industrial Strategy,Intellectual Property Office,14/02/2018,Staff Costs,People Places & Services Direc,Involve Me Training and Development Ltd,205,600.00,Not Applicable,
Department for Business Energy and Industrial Strategy,Intellectual Property Office,12/02/2018,Staff Costs,People Places & Services Direc,Involve Me Training and Development Ltd,212,600.00,Not Applicable,
Department for Business Energy and Industrial Strategy,Intellectual Property Office,12/02/2018,Staff Costs,People Places & Services Direc,Involve Me Training and Development Ltd,213,600.00,Not Applicable,
Department for Business Energy and Industrial Strategy,Intellectual Property Office,21/02/2018,Staff Costs,People Places & Services Direc,Involve Me Training and Development Ltd,214,1800.00,Not Applicable,
Department for Business Energy and Industrial Strategy,Intellectual Property Office,20/02/2018,Staff Costs,People Places & Services Direc,Involve Me Training and Development Ltd,215,600.00,Not Applicable,
Department for Business Energy and Industrial Strategy,Intellectual Property Office,20/02/2018,Staff Costs,People Places & Services Direc,Involve Me Training and Development Ltd,216,1200.00,Not Applicable,
Department for Business Energy and Industrial Strategy,Intellectual Property Office,07/02/2018,Staff Costs,People Places & Services Direc,Involve Me Training and Development Ltd,206,1800.00,Not Applicable,
Department for Business Energy and Industrial Strategy,Intellectual Property Office,07/02/2018,Staff Costs,People Places & Services Direc,Korn Ferry Hay Group (CSL),1195019905,49046.40,Not Applicable,
Department for Business Energy and Industrial Strategy,Intellectual Property Office,07/02/2018,Staff Costs,People Places & Services Direc,Korn Ferry Hay Group (CSL),1195022521,5100.00,Not Applicable,
Department for Business Energy and Industrial Strategy,Intellectual Property Office,26/02/2018,Staff Costs,People Places & Services Direc,Korn Ferry Hay Group (CSL),1195023223,1483.20,Not Applicable,
Department for Business Energy and Industrial Strategy,Intellectual Property Office,07/02/2018,Staff Costs,People Places & Services Direc,Clear Coaching & Consulting Ltd,343/2017-18,1204.74,Not Applicable,
Department for Business Energy and Industrial Strategy,Intellectual Property Office,09/02/2018,Staff Costs,Finance Directorate,Clear Coaching & Consulting Ltd,344/2017-18,5374.90,Not Applicable,
Department for Business Energy and Industrial Strategy,Intellectual Property Office,20/02/2018,Staff Costs,People Places & Services Direc,DERYL DIX TRAINING & CONSULTANCY,IPO/018/000976,1450.00,Not Applicable,
Department for Business Energy and Industrial Strategy,Intellectual Property Office,05/02/2018,Staff Costs,People Places & Services Direc,People Untapped Limited,INV0427,6923.12,Not Applicable,
Department for Business Energy and Industrial Strategy,Intellectual Property Office,20/02/2018,Staff Costs,Trade Mark Directorate,Tracy Mountain,1,2400.00,Not Applicable,
Department for Business Energy and Industrial Strategy,Intellectual Property Office,12/02/2018,Staff Costs,Patent Directorate,New Scientist Ltd,522073,718.80,Not Applicable,
Department for Business Energy and Industrial Strategy,Intellectual Property Office,12/02/2018,Staff Costs,Patent Directorate,Metropolis International Group,273345,898.80,Not Applicable,
Department for Business Energy and Industrial Strategy,Intellectual Property Office,20/02/2018,Supporting UK Business,Innovation Directorate,Burns & Company,170546,19944.00,Not Applicable,
Department for Business Energy and Industrial Strategy,Intellectual Property Office,05/02/2018,Supporting UK Business,Copyright & Enforcement Direct,City of London Police,4215111,458898.37,Not Applicable,
Department for Business Energy and Industrial Strategy,Intellectual Property Office,09/02/2018,Supporting UK Business,Innovation Directorate,IP Pragmatics,2027,2600.00,Not Applicable,
Department for Business Energy and Industrial Strategy,Intellectual Property Office,02/02/2018,Supporting UK Business,International Policy Directora,FOREIGN & COMMONWEALTH OFFICE,1101077,4980.98,Not Applicable,
Department for Business Energy and Industrial Strategy,Intellectual Property Office,06/02/2018,Supporting UK Business,Innovation Directorate,LAWRIE INTELLECTUAL PROPERTY,110930,2600.00,Not Applicable,
Department for Business Energy and Industrial Strategy,Intellectual Property Office,22/02/2018,Supporting UK Business,Innovation Directorate,LAWRIE INTELLECTUAL PROPERTY,111170,2600.00,Not Applicable,
Department for Business Energy and Industrial Strategy,Intellectual Property Office,02/02/2018,Supporting UK Business,Innovation Directorate,LAWRIE INTELLECTUAL PROPERTY,111198,2600.00,Not Applicable,
Department for Business Energy and Industrial Strategy,Intellectual Property Office,05/02/2018,Supporting UK Business,Innovation Directorate,LAWRIE INTELLECTUAL PROPERTY,111253,2600.00,Not Applicable,
Department for Business Energy and Industrial Strategy,Intellectual Property Office,19/02/2018,Supporting UK Business,Innovation Directorate,LAWRIE INTELLECTUAL PROPERTY,111321,2600.00,Not Applicable,
Department for Business Energy and Industrial Strategy,Intellectual Property Office,02/02/2018,Supporting UK Business,Innovation Directorate,Lean IP,INV2154,2600.00,Not Applicable,
Department for Business Energy and Industrial Strategy,Intellectual Property Office,12/02/2018,Supporting UK Business,Innovation Directorate,Murgitroyd & Company Ltd,44220Y-17,2600.00,Not Applicable,
Department for Business Energy and Industrial Strategy,Intellectual Property Office,02/02/2018,Supporting UK Business,Innovation Directorate,Murgitroyd & Company Ltd,46915-17,2600.00,Not Applicable,
Department for Business Energy and Industrial Strategy,Intellectual Property Office,05/02/2018,Supporting UK Business,Innovation Directorate,K. W. Peter & Co,101804,2600.00,Not Applicable,
Department for Business Energy and Industrial Strategy,Intellectual Property Office,16/02/2018,Supporting UK Business,Innovation Directorate,Stannard & Stannard,620,2600.00,Not Applicable,
Department for Business Energy and Industrial Strategy,Intellectual Property Office,02/02/2018,Supporting UK Business,Innovation Directorate,HARPER MACLEOD LLP,D936964,2600.00,Not Applicable,
Department for Business Energy and Industrial Strategy,Intellectual Property Office,22/02/2018,Supporting UK Business,Innovation Directorate,HARPER MACLEOD LLP,D940664,2600.00,Not Applicable,
Department for Business Energy and Industrial Strategy,Intellectual Property Office,22/02/2018,Supporting UK Business,Innovation Directorate,Black & Associates Ltd,1801004B,2600.00,Not Applicable,
Department for Business Energy and Industrial Strategy,Intellectual Property Office,02/02/2018,Supporting UK Business,Innovation Directorate,Scintilla,INV-01200,2600.00,Not Applicable,
Department for Business Energy and Industrial Strategy,Intellectual Property Office,22/02/2018,Supporting UK Business,Innovation Directorate,Scintilla,INV-01225,2600.00,Not Applicable,
Department for Business Energy and Industrial Strategy,Intellectual Property Office,09/02/2018,Supporting UK Business,Innovation Directorate,MBM Commercial LLP,15604,2600.00,Not Applicable,
Department for Business Energy and Industrial Strategy,Intellectual Property Office,05/02/2018,Supporting UK Business,Innovation Directorate,Ellis IP Limited,3210,2600.00,Not Applicable,
Department for Business Energy and Industrial Strategy,Intellectual Property Office,02/02/2018,Supporting UK Business,Innovation Directorate,Ouzman IP Limited,343,2600.00,Not Applicable,
Department for Business Energy and Industrial Strategy,Intellectual Property Office,13/02/2018,Supporting UK Business,Innovation Directorate,Morton Fraser,11665,2600.00,Not Applicable,
Department for Business Energy and Industrial Strategy,Intellectual Property Office,02/02/2018,Supporting UK Business,Innovation Directorate,Morton Fraser,14136,2600.00,Not Applicable,
Department for Business Energy and Industrial Strategy,Intellectual Property Office,02/02/2018,Supporting UK Business,Innovation Directorate,Schlich Ltd,7699,2600.00,Not Applicable,
Department for Business Energy and Industrial Strategy,Intellectual Property Office,26/02/2018,Supporting UK Business,Innovation Directorate,Clarion Solicitors Limited,124653,2600.00,Not Applicable,
Department for Business Energy and Industrial Strategy,Intellectual Property Office,13/02/2018,Supporting UK Business,Innovation Directorate,Hempsons,50105940,2600.00,Not Applicable,
Department for Business Energy and Industrial Strategy,Intellectual Property Office,19/02/2018,Supporting UK Business,Innovation Directorate,Darwin Gray LLP,DG16338,2600.00,Not Applicable,
Department for Business Energy and Industrial Strategy,Intellectual Property Office,22/02/2018,Supporting UK Business,Innovation Directorate,Clarke IP Ltd,2307,2600.00,Not Applicable,
Department for Business Energy and Industrial Strategy,Intellectual Property Office,08/02/2018,Telecoms,IT Directorate,Capita Business Services  Ltd,LO10245691,1361.04,Not Applicable,
Department for Business Energy and Industrial Strategy,Intellectual Property Office,08/02/2018,Telecoms,IT Directorate,Capita Business Services  Ltd,LO10245691,6461.94,Not Applicable,
Department for Business Energy and Industrial Strategy,Intellectual Property Office,08/02/2018,Telecoms,IT Directorate,Capita Business Services  Ltd,LO10245691,2207.16,Not Applicable,
Department for Business Energy and Industrial Strategy,Intellectual Property Office,08/02/2018,Telecoms,IT Directorate,Capita Business Services  Ltd,LO10245691,2568.24,Not Applicable,
Department for Business Energy and Industrial Strategy,Intellectual Property Office,08/02/2018,Telecoms,IT Directorate,Capita Business Services  Ltd,LO10245691,4731.49,Not Applicable,
Department for Business Energy and Industrial Strategy,Intellectual Property Office,08/02/2018,Telecoms,IT Directorate,Capita Business Services  Ltd,LO10245691,2942.80,Not Applicable,
Department for Business Energy and Industrial Strategy,Intellectual Property Office,08/02/2018,Telecoms,IT Directorate,Capita Business Services  Ltd,LO10245691,2674.79,Not Applicable,
Department for Business Energy and Industrial Strategy,Intellectual Property Office,08/02/2018,Telecoms,IT Directorate,Capita Business Services  Ltd,LO10245691,2772.60,Not Applicable,
Department for Business Energy and Industrial Strategy,Intellectual Property Office,23/02/2018,Telecoms,IT Directorate,Vodafone Corporate Ltd,87018224,4439.69,Not Applicable,
Department for Business Energy and Industrial Strategy,Intellectual Property Office,05/02/2018,Telecoms,IT Directorate,ZEN INTERNET LIMITED,24562645,2265.06,Not Applicable,
Department for Business Energy and Industrial Strategy,Intellectual Property Office,07/02/2018,Telecoms,IT Directorate,THREE,AAM55026483,748.00,Not Applicable,
Department for Business Energy and Industrial Strategy,Intellectual Property Office,22/02/2018,Telecoms,IT Directorate,EE Ltd,1270588762,7070.55,Not Applicable,
Department for Business Energy and Industrial Strategy,Intellectual Property Office,06/02/2018,Telecoms,IT Directorate,VODAFONE LIMITED,UK10-022018-778,3322.08,Not Applicable,
Department for Business Energy and Industrial Strategy,Intellectual Property Office,06/02/2018,Telecoms,Projects,Colt Technology Services,2.0181E+12,600.00,Not Applicable,
Department for Business Energy and Industrial Strategy,Intellectual Property Office,22/02/2018,Telecoms,IT Directorate,British Telecommunications PLC,VP02239170M19401,7867.75,Not Applicable,
Department for Business Energy and Industrial Strategy,Intellectual Property Office,12/02/2018,Telecoms,IT Directorate,Gamma Telecom Ltd,GA1402171,2110.08,Not Applicable,
Department for Business Energy and Industrial Strategy,Intellectual Property Office,19/02/2018,Travel & Subsistence,International Policy Directora,Hywel Matthews,OS000000583,1286.97,Not Applicable,
Department for Business Energy and Industrial Strategy,Intellectual Property Office,15/02/2018,Travel & Subsistence,International Policy Directora,Adam Williams,OS000000587,1218.43,Not Applicable,
Department for Business Energy and Industrial Strategy,Intellectual Property Office,09/02/2018,Travel & Subsistence,Finance Directorate,Veezu Ltd T/A Dragon Taxis (Newport),5029,7.80,Not Applicable,
Department for Business Energy and Industrial Strategy,Intellectual Property Office,09/02/2018,Travel & Subsistence,Innovation Directorate,Veezu Ltd T/A Dragon Taxis (Newport),5029,59.64,Not Applicable,
Department for Business Energy and Industrial Strategy,Intellectual Property Office,09/02/2018,Travel & Subsistence,Copyright & Enforcement Direct,Veezu Ltd T/A Dragon Taxis (Newport),5029,67.86,Not Applicable,
Department for Business Energy and Industrial Strategy,Intellectual Property Office,09/02/2018,Travel & Subsistence,People Places & Services Direc,Veezu Ltd T/A Dragon Taxis (Newport),5029,489.84,Not Applicable,
Department for Business Energy and Industrial Strategy,Intellectual Property Office,09/02/2018,Travel & Subsistence,International Policy Directora,Veezu Ltd T/A Dragon Taxis (Newport),5029,228.30,Not Applicable,
Department for Business Energy and Industrial Strategy,Intellectual Property Office,09/02/2018,Travel & Subsistence,Patent Directorate,Veezu Ltd T/A Dragon Taxis (Newport),5029,18.06,Not Applicable,
Department for Business Energy and Industrial Strategy,Intellectual Property Office,09/02/2018,Travel & Subsistence,IT Directorate,Veezu Ltd T/A Dragon Taxis (Newport),5029,47.58,Not Applicable,
Department for Business Energy and Industrial Strategy,Intellectual Property Office,09/02/2018,Travel & Subsistence,Trade Mark Directorate,Veezu Ltd T/A Dragon Taxis (Newport),5029,24.48,Not Applicable,
Department for Business Energy and Industrial Strategy,Intellectual Property Office,09/02/2018,Travel & Subsistence,Innovation Directorate,Veezu Ltd T/A Dragon Taxis (Newport),5029,63.60,Not Applicable,
Department for Business Energy and Industrial Strategy,Intellectual Property Office,09/02/2018,Travel & Subsistence,Innovation Directorate,Veezu Ltd T/A Dragon Taxis (Newport),5029,71.76,Not Applicable,
Department for Business Energy and Industrial Strategy,Intellectual Property Office,09/02/2018,Travel & Subsistence,Copyright & Enforcement Direct,Veezu Ltd T/A Dragon Taxis (Newport),5029,65.40,Not Applicable,
Department for Business Energy and Industrial Strategy,Intellectual Property Office,09/02/2018,Travel & Subsistence,People Places & Services Direc,Veezu Ltd T/A Dragon Taxis (Newport),5029,15.60,Not Applicable,
Department for Business Energy and Industrial Strategy,Intellectual Property Office,09/02/2018,Travel & Subsistence,People Places & Services Direc,Veezu Ltd T/A Dragon Taxis (Newport),5029,15.60,Not Applicable,
Department for Business Energy and Industrial Strategy,Intellectual Property Office,09/02/2018,Travel & Subsistence,Patent Directorate,Veezu Ltd T/A Dragon Taxis (Newport),5029,7.80,Not Applicable,
Department for Business Energy and Industrial Strategy,Intellectual Property Office,09/02/2018,Travel & Subsistence,Projects,Veezu Ltd T/A Dragon Taxis (Newport),5029,15.30,Not Applicable,
Department for Business Energy and Industrial Strategy,Intellectual Property Office,09/02/2018,Travel & Subsistence,Innovation Directorate,Veezu Ltd T/A Dragon Taxis (Newport),5029,15.60,Not Applicable,
Department for Business Energy and Industrial Strategy,Intellectual Property Office,27/02/2018,Career Development Services,People Places & Serv Directorate,Asda Superstore 4928,H57720180301hoyuuwqnm,23.19,Not Applicable,
Department for Business Energy and Industrial Strategy,Intellectual Property Office,27/02/2018,Career Development Services,People Places & Serv Directorate,Amazon UK Retail,H57720180301hhdsygsma,16.85,Not Applicable,
Department for Business Energy and Industrial Strategy,Intellectual Property Office,26/02/2018,Career Development Services,People Places & Serv Directorate,Marksandspencer.Co,H57720180228hsydgvegt,43.34,Not Applicable,
Department for Business Energy and Industrial Strategy,Intellectual Property Office,21/02/2018,Career Development Services,People Places & Serv Directorate,National Express Limited,H57720180223oocktopsy,52.80,Not Applicable,
Department for Business Energy and Industrial Strategy,Intellectual Property Office,19/02/2018,Career Development Services,People Places & Serv Directorate,Amazon UK Marketplace,H57720180221gbqmfmyfc,24.80,Not Applicable,
Department for Business Energy and Industrial Strategy,Intellectual Property Office,05/02/2018,Career Development Services,Patent Directorate,Www.Pmgltd.Co.Uk,H57720180207mrcvbhxna,594.00,Not Applicable,
Department for Business Energy and Industrial Strategy,Intellectual Property Office,22/02/2018,Career Development Services,Patent Directorate,Eb *materials Research,H57720180224nghvmvjhm,120.00,Not Applicable,
Department for Business Energy and Industrial Strategy,Intellectual Property Office,21/02/2018,Career Development Services,IT Directorate,Paypal,H57720180223xwogfmkfk,450.14,Not Applicable,
Department for Business Energy and Industrial Strategy,Intellectual Property Office,27/02/2018,Career Development Services,Projects,Www.Selectps.Com,H57720180301lzrjepblb,90.00,Not Applicable,
Department for Business Energy and Industrial Strategy,Intellectual Property Office,26/02/2018,Career Development Services,Projects,Act*coaching At Work L,H57720180228ohstghrap,169.99,Not Applicable,
Department for Business Energy and Industrial Strategy,Intellectual Property Office,01/02/2018,Career Development Services,People Places & Serv Directorate,Amazon UK Retail,H57720180203sxpliyqvi,38.98,Not Applicable,
Department for Business Energy and Industrial Strategy,Intellectual Property Office,26/02/2018,Career Development Services,People Places & Serv Directorate,Www.Westminster-Briefi,H57720180228fccghipkj,468.00,Not Applicable,
Department for Business Energy and Industrial Strategy,Intellectual Property Office,01/02/2018,Career Development Services,People Places & Serv Directorate,Subway,H57720180203zbtfpeqkv,31.30,Not Applicable,
Department for Business Energy and Industrial Strategy,Intellectual Property Office,05/02/2018,Placement Fees,Patent Directorate,Totaljobs Group Ltd,H57720180207iglmbhoix,298.80,Not Applicable,
Department for Business Energy and Industrial Strategy,Intellectual Property Office,05/02/2018,Placement Fees,Patent Directorate,Centaur Communications,H57720180207djyrejonv,600.00,Not Applicable,
Department for Business Energy and Industrial Strategy,Intellectual Property Office,01/02/2018,T&S UK,People Places & Serv Directorate,Www.Hxpayments.Com,H57720180203eotlmtktf,53.67,Not Applicable,
Department for Business Energy and Industrial Strategy,Intellectual Property Office,23/02/2018,T&S UK,Patent Directorate,Eb *9th Intelligent Im,H57720180227vmbuhzcoj,20.00,Not Applicable,
Department for Business Energy and Industrial Strategy,Intellectual Property Office,19/02/2018,T&S UK,Patent Directorate,Paypal,H57720180221qwmpzvixu,240.00,Not Applicable,
Department for Business Energy and Industrial Strategy,Intellectual Property Office,01/02/2018,Office Furniture,People Places & Serv Directorate,Healthy Workstations Ltd,H57720180203lnmoiumly,482.64,Not Applicable,
Department for Business Energy and Industrial Strategy,Intellectual Property Office,13/02/2018,Minor Works-Goods,People Places & Serv Directorate,Amazon UK Marketplace,H57720180215lsjfitbpe,32.04,Not Applicable,
Department for Business Energy and Industrial Strategy,Intellectual Property Office,13/02/2018,Minor Works-Goods,People Places & Serv Directorate,Amazon UK Marketplace,H57720180215wtkcbrcjf,37.37,Not Applicable,
Department for Business Energy and Industrial Strategy,Intellectual Property Office,13/02/2018,Minor Works-Goods,People Places & Serv Directorate,Amazon UK Marketplace,H57720180215coqjpwzkh,37.38,Not Applicable,
Department for Business Energy and Industrial Strategy,Intellectual Property Office,01/02/2018,Minor Works-Goods,People Places & Serv Directorate,South Wales Suppliers,H57720180203swvojetlx,53.40,Not Applicable,
Department for Business Energy and Industrial Strategy,Intellectual Property Office,02/02/2018,Minor Works-Goods,People Places & Serv Directorate,Www.Officefurnitureonl,H57720180206yorllqmax,138.00,Not Applicable,
Department for Business Energy and Industrial Strategy,Intellectual Property Office,13/02/2018,Minor Works-Goods,People Places & Serv Directorate,Www.Ofcom.Org.Uk,H57720180215boutimdkz,100.00,Not Applicable,
Department for Business Energy and Industrial Strategy,Intellectual Property Office,13/02/2018,Books,Trade Mark Directorate,The Range,H57720180215hcevfofzh,75.15,Not Applicable,
Department for Business Energy and Industrial Strategy,Intellectual Property Office,15/02/2018,Books,Innovation Directorate,Amazon Svcs Eu-Uk Amazon.,H57720180217wyovyovcu,19.34,Not Applicable,
Department for Business Energy and Industrial Strategy,Intellectual Property Office,15/02/2018,Books,Innovation Directorate,Amazon Svcs Eu-Uk Amazon.,H57720180217duoivujid,41.65,Not Applicable,
Department for Business Energy and Industrial Strategy,Intellectual Property Office,13/02/2018,Books,Innovation Directorate,Stamps Direct Ltd,H57720180215ptoaorvrv,20.96,Not Applicable,
Department for Business Energy and Industrial Strategy,Intellectual Property Office,06/02/2018,Books,Trade Mark Directorate,Oup Journals,H57720180208nqqjvcnyt,4318.92,Not Applicable,
Department for Business Energy and Industrial Strategy,Intellectual Property Office,20/02/2018,Overseas Patent Specifications,Patent Directorate,Articleondemand,H57720180222pqkfdkxpx,23.62,Not Applicable,
Department for Business Energy and Industrial Strategy,Intellectual Property Office,19/02/2018,Overseas Patent Specifications,Patent Directorate,Rei,H57720180221renkjfpyu,111.40,Not Applicable,
Department for Business Energy and Industrial Strategy,Intellectual Property Office,12/02/2018,Overseas Patent Specifications,Patent Directorate,Rei,H57720180214qqccyyhpm,23.51,Not Applicable,
Department for Business Energy and Industrial Strategy,Intellectual Property Office,09/02/2018,Overseas Patent Specifications,Patent Directorate,Rei,H57720180213kietcfbhb,37.65,Not Applicable,
Department for Business Energy and Industrial Strategy,Intellectual Property Office,09/02/2018,Overseas Patent Specifications,Patent Directorate,Nature Article Rental,H57720180213qcfevlumz,4.48,Not Applicable,
Department for Business Energy and Industrial Strategy,Intellectual Property Office,08/02/2018,Overseas Patent Specifications,Patent Directorate,Rei,H57720180210pmtxdygwn,32.08,Not Applicable,
Department for Business Energy and Industrial Strategy,Intellectual Property Office,02/02/2018,Overseas Patent Specifications,Patent Directorate,Www.Springer.Com,H57720180207jsvjhwhyo,23.94,Not Applicable,
Department for Business Energy and Industrial Strategy,Intellectual Property Office,02/02/2018,Overseas Patent Specifications,Patent Directorate,Rei,H57720180206xbuflfcyp,31.50,Not Applicable,
Department for Business Energy and Industrial Strategy,Intellectual Property Office,02/02/2018,Overseas Patent Specifications,Patent Directorate,Rei,H57720180206prbnbhsvx,55.21,Not Applicable,
Department for Business Energy and Industrial Strategy,Intellectual Property Office,31/01/2018,Overseas Patent Specifications,Patent Directorate,Informa UK Ecom Gb,H57720180202zjcfvyjxv,45.60,Not Applicable,
Department for Business Energy and Industrial Strategy,Intellectual Property Office,31/01/2018,Overseas Patent Specifications,Patent Directorate,Audio Eng Society,H57720180202yywzrhkod,24.06,Not Applicable,
Department for Business Energy and Industrial Strategy,Intellectual Property Office,16/02/2018,Office Stationery,People Places & Serv Directorate,Amazon Svcs Eu-Uk Amazon.,H57720180220wdqmpcfpr,9.28,Not Applicable,
Department for Business Energy and Industrial Strategy,Intellectual Property Office,14/02/2018,Office Stationery,People Places & Serv Directorate,Paypal,H57720180216qsgxtqnon,283.50,Not Applicable,
Department for Business Energy and Industrial Strategy,Intellectual Property Office,14/02/2018,Office Stationery,People Places & Serv Directorate,Sig,H57720180216pxhnqlmrk,91.28,Not Applicable,
Department for Business Energy and Industrial Strategy,Intellectual Property Office,12/02/2018,Office Stationery,People Places & Serv Directorate,Screwfix Direct,H57720180214jfcuhgwcl,65.29,Not Applicable,
Department for Business Energy and Industrial Strategy,Intellectual Property Office,07/02/2018,Office Stationery,People Places & Serv Directorate,Newey & Eyre,H57720180210oawppzocw,47.76,Not Applicable,
Department for Business Energy and Industrial Strategy,Intellectual Property Office,22/02/2018,Office Stationery,People Places & Serv Directorate,Amazon UK Marketplace,H57720180224qaxdtubnq,15.99,Not Applicable,
Department for Business Energy and Industrial Strategy,Intellectual Property Office,22/02/2018,Office Stationery,People Places & Serv Directorate,Amazon UK Retail,H57720180224aucmimrmb,19.98,Not Applicable,
Department for Business Energy and Industrial Strategy,Intellectual Property Office,06/02/2018,Office Stationery,People Places & Serv Directorate,Amazon UK Marketplace,H57720180208bfduswkho,32.98,Not Applicable,
Department for Business Energy and Industrial Strategy,Intellectual Property Office,20/02/2018,Office Stationery,People Places & Serv Directorate,Healthy Workstations Ltd,H57720180222ykvjknela,98.70,Not Applicable,
Department for Business Energy and Industrial Strategy,Intellectual Property Office,14/02/2018,Office Stationery,People Places & Serv Directorate,Currys Online,H57720180216cmkjyqwjc,149.91,Not Applicable,
Department for Business Energy and Industrial Strategy,Intellectual Property Office,09/02/2018,Office Stationery,People Places & Serv Directorate,Careco.Co.Uk,H57720180213lvfrdjjlh,107.99,Not Applicable,
Department for Business Energy and Industrial Strategy,Intellectual Property Office,06/02/2018,Office Stationery,People Places & Serv Directorate,Tg Howell,H57720180208eqyjgtxzv,61.58,Not Applicable,
Department for Business Energy and Industrial Strategy,Intellectual Property Office,31/01/2018,Office Stationery,Finance Directorate,Amazon UK Marketplace,H57720180202ujyurdpzy,13.75,Not Applicable,
Department for Business Energy and Industrial Strategy,Intellectual Property Office,26/02/2018,Office Stationery,People Places & Serv Directorate,The Dyslexia Shop Ltd,H57720180228vqzfmorgk,9.94,Not Applicable,
Department for Business Energy and Industrial Strategy,Intellectual Property Office,26/02/2018,Office Stationery,People Places & Serv Directorate,Nukey,H57720180228ukobdictl,10.08,Not Applicable,
Department for Business Energy and Industrial Strategy,Intellectual Property Office,26/02/2018,Office Stationery,People Places & Serv Directorate,Securedatarecyclin,H57720180228mfczbficm,999.00,Not Applicable,
Department for Business Energy and Industrial Strategy,Intellectual Property Office,26/02/2018,Office Stationery,People Places & Serv Directorate,Www.Posturite.Co.Uk,H57720180228lcqkgqxkb,19.19,Not Applicable,
Department for Business Energy and Industrial Strategy,Intellectual Property Office,26/02/2018,Office Stationery,People Places & Serv Directorate,Securedatarecyclin,H57720180228drjipyzcp,75.00,Not Applicable,
Department for Business Energy and Industrial Strategy,Intellectual Property Office,14/02/2018,Office Stationery,People Places & Serv Directorate,Amazon Eu Amazon.Co.Uk,H57720180216myysbtdxk,13.33,Not Applicable,
Department for Business Energy and Industrial Strategy,Intellectual Property Office,13/02/2018,Office Stationery,People Places & Serv Directorate,Amazon Eu Amazon.Co.Uk,H57720180215tfhuyjmmd,26.66,Not Applicable,
Department for Business Energy and Industrial Strategy,Intellectual Property Office,13/02/2018,Office Stationery,People Places & Serv Directorate,Amazon Eu Amazon.Co.Uk,H57720180215fhnjlvnvb,26.66,Not Applicable,
Department for Business Energy and Industrial Strategy,Intellectual Property Office,12/02/2018,Office Stationery,People Places & Serv Directorate,Don Ruffles Ltd,H57720180214ludgftryg,82.04,Not Applicable,
Department for Business Energy and Industrial Strategy,Intellectual Property Office,15/02/2018,Office Stationery,Finance Directorate,Www.Ukpos.Com,H57720180217ntvkpgofy,114.28,Not Applicable,
Department for Business Energy and Industrial Strategy,Intellectual Property Office,05/02/2018,Office Stationery,Finance Directorate,Www.Ukpos.Com,H57720180207tkztmgyyc,120.6,Not Applicable,
Department for Business Energy and Industrial Strategy,Intellectual Property Office,12/02/2018,Software Maintenance,Trade Mark Directorate,The Intellectual Property,H57720180214muhmlxbeu,-50,Not Applicable,
Department for Business Energy and Industrial Strategy,Intellectual Property Office,12/02/2018,Software Maintenance,Trade Mark Directorate,The Intellectual Property,H57720180214tioiegjgw,-170,Not Applicable,
Department for Business Energy and Industrial Strategy,Intellectual Property Office,10/02/2018,Software Maintenance,Trade Mark Directorate,The Intellectual Property,H57720180213emzouirjp,50,Not Applicable,
Department for Business Energy and Industrial Strategy,Intellectual Property Office,10/02/2018,Software Maintenance,Trade Mark Directorate,The Intellectual Property,H57720180213hpyuxbfvy,170,Not Applicable,
Department for Business Energy and Industrial Strategy,Intellectual Property Office,13/02/2018,Software Maintenance,IT Directorate,Nycomm Ltd,H57720180215jzmmdgaur,326.94,Not Applicable,
Department for Business Energy and Industrial Strategy,Intellectual Property Office,12/02/2018,Software Maintenance,IT Directorate,Nycomm Ltd,H57720180214yjrurmmtt,341.94,Not Applicable,
Department for Business Energy and Industrial Strategy,Intellectual Property Office,31/01/2018,Network and infrastructure H/W,IT Directorate,Www.Netsecrets.Co.Uk,H57720180202jxiqagbfe,420,Not Applicable,
Department for Business Energy and Industrial Strategy,Intellectual Property Office,18/02/2018,Network and infrastructure H/W,IT Directorate,Amazon Eu Amazon.Co.Uk,H57720180220iwuvmnlqc,11.36,Not Applicable,
Department for Business Energy and Industrial Strategy,Intellectual Property Office,15/02/2018,Network and infrastructure H/W,IT Directorate,Amazon Eu Amazon.Co.Uk,H57720180217pnqlhlnkn,17.04,Not Applicable,
Department for Business Energy and Industrial Strategy,Intellectual Property Office,06/02/2018,Network and infrastructure H/W,IT Directorate,Pa Promotions Ltd,H57720180208bxelbqtnl,607.95,Not Applicable,
Department for Business Energy and Industrial Strategy,Intellectual Property Office,06/02/2018,Network and infrastructure H/W,IT Directorate,Tshirt Studio Ltd,H57720180208sudstmhww,322,Not Applicable,
Department for Business Energy and Industrial Strategy,Intellectual Property Office,02/02/2018,Network and infrastructure H/W,IT Directorate,Amazon UK Retail,H57720180206sivezbdif,23.46,Not Applicable,
Department for Business Energy and Industrial Strategy,Intellectual Property Office,01/02/2018,Network and infrastructure H/W,IT Directorate,Amazon UK Retail,H57720180203wpfknbmog,159.51,Not Applicable,
Department for Business Energy and Industrial Strategy,Intellectual Property Office,19/02/2018,Network and infrastructure H/W,IT Directorate,Amazon UK Retail,H57720180221kkpmsivys,104.92,Not Applicable,
Department for Business Energy and Industrial Strategy,Intellectual Property Office,26/02/2018,Network and infrastructure H/W,People Places & Serv Directorate,W M Morrison Plc,H57720180228mvnopjlkq,6.65,Not Applicable,
Department for Business Energy and Industrial Strategy,Intellectual Property Office,02/02/2018,Network and infrastructure H/W,People Places & Serv Directorate,Tesco-Stores 6459,H57720180206wersuitxr,52.29,Not Applicable,
Department for Business Energy and Industrial Strategy,Intellectual Property Office,26/02/2018,Perpetual Licences,IT Directorate,Www.Ja.Net,H57720180228sflmypphq,48,Not Applicable,
Department for Business Energy and Industrial Strategy,Intellectual Property Office,19/02/2018,Perpetual Licences,IT Directorate,Meetingzone Ltd,H57720180221osxqvkskj,1011.55,Not Applicable,
Department for Business Energy and Industrial Strategy,Intellectual Property Office,17/02/2018,Advertising Distribution,Innovation Directorate,Twitonomy.Com,H57720180220opslnjrpy,13.97,Not Applicable,
Department for Business Energy and Industrial Strategy,Intellectual Property Office,01/02/2018,Advertising Distribution,Innovation Directorate,Soundcloud,H57720180203satucplnf,67.5,Not Applicable,
Department for Business Energy and Industrial Strategy,Intellectual Property Office,19/02/2018,Advertising Distribution,Innovation Directorate,"Aul*bd01-2018, Ip Strateg",H57720180221ooxrijjte,91.32,Not Applicable,
Department for Business Energy and Industrial Strategy,Intellectual Property Office,31/01/2018,Advertising Distribution,Innovation Directorate,Marks&spencer Plc,H57720180202ochgnhevd,90.5,Not Applicable,
Department for Business Energy and Industrial Strategy,Intellectual Property Office,06/02/2018,Advertising Distribution,Innovation Directorate,Ges Limited,H57720180208knqgusjzy,142.26,Not Applicable,
Department for Business Energy and Industrial Strategy,Intellectual Property Office,01/02/2018,Advertising Distribution,Innovation Directorate,Ges Limited,H57720180203bpkjyxpdb,434.4,Not Applicable,
Department for Business Energy and Industrial Strategy,Intellectual Property Office,09/02/2018,Advertising Distribution,Innovation Directorate,Index Group Shell,H57720180213tppjccght,356.46,Not Applicable,
Department for Business Energy and Industrial Strategy,Intellectual Property Office,05/02/2018,Advertising Distribution,Innovation Directorate,Europa Internation,H57720180207ubboxrkpm,564,Not Applicable,
Department for Business Energy and Industrial Strategy,Intellectual Property Office,03/02/2018,Advertising Distribution,Innovation Directorate,Campaignmonitor.Co,H57720180206gvqdsnblv,50.93,Not Applicable,
Department for Business Energy and Industrial Strategy,Intellectual Property Office,21/02/2018,Entertainment,Copyright and Enforcement Directorate,Marksandspencer.Co,H57720180223qbmgknqxj,44.19,Not Applicable,
Department for Business Energy and Industrial Strategy,Intellectual Property Office,16/02/2018,Entertainment,IT Directorate,Subway,H57720180220hxzocmvzm,36,Not Applicable,
Department for Business Energy and Industrial Strategy,Intellectual Property Office,08/02/2018,Entertainment,Innovation Directorate,Marksandspencer.Co,H57720180210kciqqndmf,66.84,Not Applicable,
Department for Business Energy and Industrial Strategy,Intellectual Property Office,09/02/2018,Entertainment,People Places & Serv Directorate,Asda Superstore 4928,H57720180213oqcpjtwbi,4,Not Applicable,
Department for Business Energy and Industrial Strategy,Intellectual Property Office,01/02/2018,Entertainment,People Places & Serv Directorate,Asda Superstore 4928,H57720180203egedstpwp,22.7,Not Applicable,
Department for Business Energy and Industrial Strategy,Intellectual Property Office,22/02/2018,Steering Board,People Places & Serv Directorate,Office For National St,H57720180224sfhokczvm,1.3,Not Applicable,
Department for Business Energy and Industrial Strategy,Intellectual Property Office,20/02/2018,Steering Board,People Places & Serv Directorate,Amazon Svcs Eu-Uk Amazon.,H57720180222hcoveveow,20.2,Not Applicable,
Department for Business Energy and Industrial Strategy,Intellectual Property Office,16/02/2018,Steering Board,People Places & Serv Directorate,Marks&spencer Plc,H57720180220rlkmylyvo,48.8,Not Applicable,
Department for Business Energy and Industrial Strategy,Intellectual Property Office,13/02/2018,Steering Board,People Places & Serv Directorate,Office For National St,H57720180215nuvnjrwiv,1,Not Applicable,
Department for Business Energy and Industrial Strategy,Intellectual Property Office,11/02/2018,Steering Board,People Places & Serv Directorate,Marks&spencer Plc,H57720180213bkjvwulqf,61.2,Not Applicable,
Department for Business Energy and Industrial Strategy,Intellectual Property Office,31/01/2018,Steering Board,People Places & Serv Directorate,Tesco Stores 5177,H57720180202nchddjpcp,11.56,Not Applicable,
Department for Business Energy and Industrial Strategy,Intellectual Property Office,20/02/2018,Seminars and Confereces,IT Directorate,Potters Heron Hotel,H57720180223wsrqpghfv,384,Not Applicable,
Department for Business Energy and Industrial Strategy,Intellectual Property Office,20/02/2018,Seminars and Confereces,IT Directorate,Potters Heron Hotel,H57720180223tvqyqlhkc,384,Not Applicable,
Department for Business Energy and Industrial Strategy,Intellectual Property Office,16/02/2018,Seminars and Confereces,People Places & Serv Directorate,Przcharge.Prezi.Com,H57720180220dvfkuniqy,15.6,Not Applicable,
Department for Business Energy and Industrial Strategy,Intellectual Property Office,31/01/2018,Seminars and Confereces,People Places & Serv Directorate,Asda Superstore 4928,H57720180202zmqdtljqk,14.94,Not Applicable,
Department for Business Energy and Industrial Strategy,Intellectual Property Office,20/02/2018,Eyecare,People Places & Serv Directorate,Specsaversevougb-,H57720180222qzqbnxrka,680,Not Applicable,
Department for Business Energy and Industrial Strategy,Intellectual Property Office,26/02/2018,Other,People Places & Serv Directorate,Amazon Eu Amazon.Co.Uk,H57720180301xmotqgfzj,25.98,Not Applicable,
Department for Business Energy and Industrial Strategy,Intellectual Property Office,27/02/2018,Other,People Places & Serv Directorate,Hse,H57720180301wccgurtlj,25,Not Applicable,
Department for Business Energy and Industrial Strategy,Intellectual Property Office,31/01/2018,Other,People Places & Serv Directorate,Www.Iosh.Co.Uk,H57720180209mogxxquhv,-72,Not Applicable,
Department for Business Energy and Industrial Strategy,Intellectual Property Office,31/01/2018,Other,People Places & Serv Directorate,Www.Iosh.Co.Uk,H57720180202fgtnqayfz,72,Not Applicable,
Department for Business Energy and Industrial Strategy,Intellectual Property Office,31/01/2018,Other,People Places & Serv Directorate,Www.Iosh.Co.Uk,H57720180202crflsrntn,72,Not Applicable,
Department for Business Energy and Industrial Strategy,Intellectual Property Office,31/01/2018,Other,People Places & Serv Directorate,Instit Of Occptnl Safe,H57720180202bbpvwustc,72,Not Applicable,
